bitfinex-derivatives/quotes_ETHF0:USTF0_20250918
["timestamp","ask_amount","ask_price","bid_price","bid_amount"]
[1758202852128,0.1232,4594.5,4594.4,3.2078]
[1758202852335,0.1232,4595.0,4594.4,7.2078]
[1758202852535,0.4408,4594.5,4594.4,3.2078]
[1758202855029,0.4408,4595.0,4594.4,7.2078]
[1758202855228,0.1232,4595.5,4593.1,0.97927]
[1758202855229,0.4408,4595.5,4594.9,3.2078]
[1758202855428,0.4408,4595.5,4594.5,0.44564]
[1758202855429,0.4408,4595.5,4595.4,3.2078]
[1758202856435,0.4408,4595.5,4594.6,3.2295]
[1758202856436,0.1232,4595.0,4594.6,3.2295]
[1758202857739,0.317,4594.9,4594.6,3.2295]
[1758202858231,0.1232,4595.0,4594.6,3.2295]
[1758202858436,0.317,4594.9,4594.6,3.2295]
[1758202858629,0.1232,4595.0,4594.6,3.2295]
[1758202859333,0.1232,4595.0,4594.6,3.2078]
[1758202860331,0.317,4594.9,4594.6,3.2078]
[1758202860538,0.1274,4594.5,4594.1,3.2078]
[1758202860932,0.1274,4594.5,4594.1,3.4358]
[1758202861340,0.317,4594.4,4593.7,0.228]
[1758202861531,0.1274,4594.0,4593.7,0.228]
[1758202862332,0.317,4594.3,4593.7,0.228]
[1758202862533,0.1274,4594.5,4594.2,3.2078]
[1758202862734,0.317,4594.4,4594.2,3.2078]
[1758202862933,0.1274,4594.5,4594.2,3.2078]
[1758202863335,0.317,4594.4,4594.2,3.2078]
[1758202863533,0.1274,4594.5,4594.2,3.2078]
[1758202864542,0.317,4594.4,4594.2,3.2078]
[1758202865542,0.1274,4594.5,4594.2,3.2078]
[1758202865739,0.1232,4594.0,4593.6,3.2295]
[1758202865937,0.2967,4593.9,4593.6,3.2295]
[1758202866151,0.2967,4593.9,4593.6,3.2078]
[1758202866438,0.2967,4594.3,4593.7,0.228]
[1758202867039,0.1232,4594.0,4593.7,0.228]
[1758202867341,0.2967,4593.9,4593.7,0.228]
[1758202867543,0.1232,4594.0,4593.6,3.4358]
[1758202867936,0.2967,4593.9,4593.6,3.4358]
[1758202868249,0.2967,4593.9,4593.6,3.2078]
[1758202868435,0.2967,4593.9,4592.9,3.2078]
[1758202868436,0.228,4593.8,4592.9,3.2078]
[1758202868641,0.4199,4592.5,4592.4,3.2078]
[1758202869338,0.1232,4592.0,4591.8,3.2078]
[1758202869536,0.2967,4591.9,4591.8,3.2078]
[1758202869744,0.1232,4592.0,4591.8,3.2078]
[1758202869946,0.4199,4592.5,4591.8,3.2078]
[1758202870142,0.2967,4591.9,4591.8,3.2078]
[1758202870347,0.2967,4591.9,4591.2,3.2078]
[1758202870545,0.1232,4592.0,4591.2,3.2078]
[1758202870546,0.1232,4591.5,4591.2,3.2078]
[1758202870736,0.2967,4591.4,4590.6,3.2078]
[1758202870943,0.4199,4592.0,4591.2,3.2078]
[1758202871240,0.5247,4592.4,4591.7,3.2078]
[1758202871449,0.2967,4592.4,4591.7,3.2078]
[1758202871947,0.1232,4592.0,4591.7,3.2078]
[1758202872346,0.228,4592.4,4591.7,3.2078]
[1758202872646,0.4199,4592.5,4591.7,3.2078]
[1758202873242,0.1232,4593.5,4592.2,3.2078]
[1758202873448,0.4199,4593.5,4593.4,3.2078]
[1758202873640,0.1232,4594.0,4593.4,3.2078]
[1758202874040,0.4199,4593.5,4593.4,3.2078]
[1758202874241,0.1232,4594.0,4593.4,3.4358]
[1758202874437,0.4199,4594.0,4593.9,3.2078]
[1758202874837,0.1232,4594.0,4593.9,3.2078]
[1758202875044,0.4199,4594.0,4593.9,3.2078]
[1758202875251,0.4199,4594.0,4593.6,0.228]
[1758202875454,0.4199,4594.0,4593.4,3.2078]
[1758202875455,0.4199,4593.5,4593.4,3.2078]
[1758202875650,0.1232,4593.0,4592.9,3.2078]
[1758202875841,0.4199,4593.0,4592.9,3.22736938]
[1758202876047,0.4199,4593.0,4592.9,3.45536938]
[1758202876656,0.4199,4593.0,4592.9,3.22736938]
[1758202876850,0.4199,4593.0,4592.9,3.2377049]
[1758202877050,0.4199,4593.0,4592.9,0.0299049]
[1758202877259,4.4199,4593.0,4592.9,0.0299049]
[1758202878141,0.4199,4593.0,4592.9,3.2377049]
[1758202878341,0.1232,4593.5,4592.9,3.2377049]
[1758202878551,0.4199,4593.5,4593.4,3.2078]
[1758202878951,0.4199,4593.5,4593.4,3.2377049]
[1758202879251,0.1232,4594.0,4593.4,3.4657049]
[1758202879448,0.2967,4594.1,4593.4,3.4657049]
[1758202879653,0.2967,4594.1,4594.0,3.2078]
[1758202879850,0.2967,4594.1,4594.0,3.2377049]
[1758202880555,0.2967,4594.9,4594.0,7.2377049]
[1758202880854,0.4199,4595.5,4594.7,3.2078]
[1758202881055,0.4199,4595.5,4595.4,3.2078]
[1758202881949,0.4199,4595.5,4595.4,3.2377049]
[1758202882746,0.4199,4595.5,4592.7,1.91263685]
[1758202882747,0.2967,4594.9,4594.8,3.2078]
[1758202882952,0.1232,4594.5,4594.2,3.2078]
[1758202883354,0.2967,4594.4,4594.2,3.2078]
[1758202883756,0.1232,4594.5,4594.2,3.2078]
[1758202884153,0.2967,4594.4,4594.2,3.2078]
[1758202884453,0.2967,4594.4,4593.7,0.228]
[1758202884454,0.1232,4594.0,4593.7,0.228]
[1758202884851,0.2967,4593.9,4593.6,3.2078]
[1758202885352,0.2967,4593.9,4592.2,0.0217]
[1758202885353,0.1232,4593.5,4593.1,3.2078]
[1758202885555,0.2967,4593.4,4593.1,3.2078]
[1758202885850,0.4199,4593.5,4593.1,3.2078]
[1758202886052,0.1232,4593.5,4593.1,3.2078]
[1758202886558,0.2967,4593.4,4593.1,3.2078]
[1758202887455,0.1232,4593.5,4593.1,3.2078]
[1758202887659,0.2967,4593.4,4593.1,3.2078]
[1758202887850,0.2967,4593.3,4592.4,3.2078]
[1758202888150,0.4199,4592.5,4592.4,3.2078]
[1758202889150,0.1232,4592.0,4591.6,0.228]
[1758202889352,0.1232,4592.0,4591.5,3.2078]
[1758202890252,0.2967,4591.9,4591.5,3.2078]
[1758202891652,0.1232,4592.0,4591.5,3.2078]
[1758202891857,0.2967,4591.9,4591.5,3.2078]
[1758202892150,0.1232,4592.0,4591.5,3.2078]
[1758202892349,0.2967,4591.9,4591.5,3.2078]
[1758202892951,0.1232,4592.0,4591.5,3.2078]
[1758202893146,3.4358,4592.2,4591.5,3.2078]
[1758202893353,0.1232,4592.0,4591.5,3.2078]
[1758202893559,0.2967,4591.9,4591.5,3.2078]
[1758202893878,0.2967,4591.4,4591.2,0.0217]
[1758202894154,0.2967,4591.4,4590.9,3.2078]
[1758202894351,0.4199,4591.0,4590.9,3.2078]
[1758202894748,0.1232,4591.5,4590.9,3.2078]
[1758202894947,0.4199,4591.5,4591.4,3.2078]
[1758202896858,0.4431,4591.0,4590.9,3.2078]
[1758202897062,0.4431,4591.0,4590.9,3.2295]
[1758202899769,0.4431,4591.0,4590.9,3.2078]
[1758202900367,0.1236,4590.5,4590.4,3.2078]
[1758202900564,0.4431,4590.5,4590.4,3.2078]
[1758202901265,0.1236,4591.0,4590.4,3.2078]
[1758202901958,0.4431,4590.5,4590.4,3.2078]
[1758202902156,0.4431,4590.5,4588.5,31.355]
[1758202902157,0.1236,4590.0,4589.9,3.2078]
[1758202902358,0.4431,4590.0,4589.9,3.2078]
[1758202902863,0.4431,4589.5,4589.4,3.2295]
[1758202903066,0.1236,4588.5,4588.2,3.2078]
[1758202903263,0.3195,4588.3,4587.7,3.2078]
[1758202903565,0.3195,4588.1,4587.7,3.2078]
[1758202903765,0.3195,4587.8,4587.7,3.2078]
[1758202904767,0.3195,4587.8,4587.2,3.2078]
[1758202905071,0.1236,4587.5,4587.2,3.2078]
[1758202905269,0.3195,4587.4,4587.2,3.2078]
[1758202905663,0.1236,4587.5,4586.7,3.2078]
[1758202905664,0.4431,4587.5,4586.7,3.2078]
[1758202905863,0.1236,4587.5,4586.7,3.2078]
[1758202906065,0.1236,4588.0,4587.2,3.2078]
[1758202906066,0.3195,4587.6,4587.2,3.2078]
[1758202906265,0.194,4587.8,4587.2,3.2078]
[1758202906464,0.3195,4588.1,4586.5,0.0218]
[1758202906465,0.3195,4588.1,4587.7,3.2078]
[1758202906662,0.3195,4588.6,4587.7,3.2078]
[1758202906870,0.228,4588.4,4587.7,3.2078]
[1758202907067,0.3195,4588.4,4587.7,3.2078]
[1758202907372,0.5475,4588.4,4587.7,3.2078]
[1758202907570,0.3195,4588.4,4587.7,3.2078]
[1758202908072,0.228,4588.3,4587.7,3.2078]
[1758202908672,0.1236,4588.0,4587.7,3.2078]
[1758202909071,0.3195,4587.9,4587.1,3.2078]
[1758202909568,0.5475,4588.3,4587.8,3.2078]
[1758202909770,0.3195,4588.3,4587.8,3.2078]
[1758202910072,3.2078,4588.7,4587.8,3.2078]
[1758202910269,0.1236,4589.5,4588.4,3.2078]
[1758202910470,0.3195,4589.1,4588.4,3.2078]
[1758202910863,0.3195,4588.9,4588.4,3.2078]
[1758202911069,0.4431,4588.5,4588.4,3.2078]
[1758202911274,0.4431,4588.5,4587.9,3.2078]
[1758202911464,0.3195,4588.4,4587.9,3.2078]
[1758202911669,0.1236,4588.5,4587.9,3.2078]
[1758202912070,0.4431,4588.0,4587.4,3.4358]
[1758202912275,0.4431,4587.5,4587.4,3.2078]
[1758202914778,0.4431,4588.5,4587.4,3.2078]
[1758202914977,0.3195,4588.4,4588.1,3.2078]
[1758202915275,0.1236,4588.5,4588.1,3.2078]
[1758202915471,0.4431,4589.0,4588.1,3.2078]
[1758202915669,0.1236,4589.0,4588.7,3.2078]
[1758202916377,0.3195,4588.9,4588.7,3.2078]
[1758202916578,0.3195,4589.4,4588.7,3.2078]
[1758202916779,0.1236,4589.5,4588.7,3.2078]
[1758202917177,0.3054,4589.4,4588.7,3.2078]
[1758202917778,0.3054,4589.4,4589.2,3.2078]
[1758202917970,0.429,4589.5,4589.2,3.2078]
[1758202918177,0.228,4589.9,4589.2,3.2078]
[1758202918377,0.228,4589.9,4589.7,3.2078]
[1758202918378,0.3054,4589.8,4589.7,3.2078]
[1758202919384,0.3054,4589.4,4589.0,3.2078]
[1758202919574,0.3544,4589.5,4588.5,3.2078]
[1758202919775,0.3054,4589.3,4588.5,3.2078]
[1758202919976,0.215,4589.4,4588.5,3.2078]
[1758202920179,0.3054,4588.9,4588.0,3.2078]
[1758202920487,0.3054,4588.9,4588.5,3.2078]
[1758202920488,0.3054,4588.8,4588.5,3.2078]
[1758202920683,0.3054,4588.9,4588.5,3.2078]
[1758202920980,0.1264,4588.5,4588.0,3.2078]
[1758202921178,0.3054,4588.4,4588.0,3.2078]
[1758202921381,0.5344,4588.9,4588.0,3.2078]
[1758202921578,0.5344,4588.9,4587.7,0.229]
[1758202921579,0.3054,4589.4,4588.6,3.2078]
[1758202921780,0.3054,4589.4,4588.1,0.229]
[1758202921781,0.3054,4589.4,4589.2,2.44133799]
[1758202922294,0.3054,4589.4,4588.2,0.229]
[1758202922295,0.3054,4589.4,4588.7,3.2078]
[1758202922696,0.3054,4589.9,4589.3,3.2078]
[1758202922895,0.3054,4589.9,4589.8,3.2078]
[1758202923493,0.3054,4590.4,4589.8,3.2078]
[1758202923992,0.429,4590.0,4589.8,3.2078]
[1758202924194,0.4318,4590.5,4589.8,3.2078]
[1758202924398,0.3054,4590.4,4590.3,3.2078]
[1758202925496,0.1255,4590.5,4590.3,3.2078]
[1758202925801,0.4324,4591.0,4590.3,3.4368]
[1758202926094,0.4324,4591.5,4590.9,3.2078]
[1758202926294,0.4324,4591.5,4589.1,0.0217]
[1758202926295,0.1255,4590.5,4590.4,3.2078]
[1758202926599,0.96413227,4590.5,4590.4,3.2078]
[1758202927797,0.1255,4590.0,4589.8,0.229]
[1758202927994,0.306,4589.9,4589.1,0.0217]
[1758202928302,0.306,4589.9,4589.6,3.2078]
[1758202928510,0.306,4590.7,4589.7,0.027]
[1758202928796,0.447,4591.4,4590.6,3.2078]
[1758202928996,0.1255,4591.0,4589.9,3.2078]
[1758202929197,0.306,4590.8,4589.9,3.2078]
[1758202929394,0.53283808,4590.7,4589.9,3.2078]
[1758202929599,0.306,4590.5,4590.4,3.2078]
[1758202929802,0.4315,4590.5,4589.9,3.2078]
[1758202930101,0.53300035,4590.4,4589.9,3.2078]
[1758202930304,0.1255,4590.5,4589.9,3.2078]
[1758202930601,0.1255,4590.5,4589.9,3.4368]
[1758202930990,0.306,4590.4,4589.9,3.4368]
[1758202931195,0.1255,4590.5,4589.9,3.4368]
[1758202931391,0.1255,4590.5,4590.4,3.2078]
[1758202931593,3.5138,4591.7,4590.4,3.4358]
[1758202931801,0.306,4591.2,4591.1,3.2078]
[1758202932194,0.306,4591.4,4591.1,3.2078]
[1758202932398,0.306,4591.2,4591.1,3.2078]
[1758202932700,0.4324,4591.5,4591.1,3.2078]
[1758202933196,0.306,4591.4,4591.1,3.2078]
[1758202934399,0.306,4591.4,4590.8,0.0217]
[1758202934706,0.1255,4591.0,4590.8,0.0217]
[1758202934997,0.306,4590.9,4590.8,0.0217]
[1758202935406,0.1255,4590.0,4589.5,3.2078]
[1758202935602,0.306,4589.9,4589.5,3.2078]
[1758202936701,3.3333,4590.5,4589.5,3.2078]
[1758202936905,0.306,4590.3,4589.5,3.2078]
[1758202937207,0.1255,4590.0,4589.5,3.2078]
[1758202937593,0.4315,4590.0,4589.5,3.2078]
[1758202937797,0.306,4589.9,4589.5,3.2078]
[1758202937992,3.3333,4590.5,4589.5,3.2078]
[1758202938197,0.53290695,4590.4,4589.5,3.2078]
[1758202938399,0.306,4590.4,4589.5,3.2078]
[1758202939108,0.306,4590.2,4589.5,3.2078]
[1758202939607,0.306,4589.9,4589.5,3.2078]
[1758202940405,0.306,4589.7,4589.5,3.2078]
[1758202940707,0.83943085,4589.6,4589.5,3.2078]
[1758202941209,0.306,4589.6,4589.5,3.2078]
[1758202941400,0.306,4589.4,4589.3,0.0217]
[1758202941600,0.83950498,4589.4,4589.3,0.0217]
[1758202942013,1.06750498,4589.4,4589.3,0.0217]
[1758202942307,1.06750498,4589.4,4588.7,3.2078]
[1758202942505,0.306,4588.9,4588.7,3.2078]
[1758202942697,0.1255,4589.0,4588.7,3.2078]
[1758202943204,4.1255,4589.0,4588.7,3.2078]
[1758202943402,0.534,4588.9,4588.7,3.2078]
[1758202943604,0.306,4588.8,4587.9,3.2078]
[1758202944005,0.228,4588.9,4587.9,3.2078]
[1758202944006,0.306,4588.9,4587.9,3.2078]
[1758202944207,0.4315,4588.0,4587.9,3.2078]
[1758202945605,0.306,4588.2,4587.9,3.2078]
[1758202946003,0.146,4588.3,4587.9,3.2078]
[1758202946302,0.146,4588.3,4587.4,3.2078]
[1758202946607,0.1255,4587.5,4587.4,3.2078]
[1758202946807,0.4315,4587.5,4587.4,3.2078]
[1758202947813,0.306,4587.4,4587.1,0.0218]
[1758202948103,0.306,4586.4,4586.3,4.31e-06]
[1758202948305,0.1255,4585.0,4584.8,3.2078]
[1758202948501,0.306,4584.9,4584.3,3.2078]
[1758202948700,0.228,4584.9,4584.3,3.2078]
[1758202948903,3.5138,4585.4,4584.3,3.2078]
[1758202948904,3.5138,4585.4,4584.4,0.2771]
[1758202949109,0.1255,4585.5,4585.0,3.2078]
[1758202949304,0.306,4585.4,4585.0,3.2078]
[1758202949504,0.535,4585.3,4585.0,3.2078]
[1758202949708,0.306,4585.2,4585.0,3.2078]
[1758202949911,0.306,4585.2,4584.4,0.2771]
[1758202950812,0.229,4585.1,4584.4,0.2771]
[1758202951209,0.229,4585.0,4584.3,3.2078]
[1758202951505,0.306,4584.9,4584.3,3.2078]
[1758202951907,0.306,4584.7,4584.3,3.2078]
[1758202952104,0.216,4584.8,4584.3,3.2078]
[1758202952305,0.306,4584.7,4584.3,3.2078]
[1758202952611,0.4315,4585.5,4584.4,0.2771]
[1758202952817,0.229,4585.4,4584.4,0.2771]
[1758202953012,0.228,4585.3,4584.4,0.2771]
[1758202953314,0.306,4585.5,4584.4,0.2771]
[1758202953504,0.229,4585.4,4584.8,3.2078]
[1758202953707,0.306,4585.3,4584.8,3.2078]
[1758202954207,0.229,4585.4,4584.8,3.2078]
[1758202954515,0.306,4585.2,4584.2,3.2078]
[1758202954809,0.306,4585.2,4584.2,3.4849]
[1758202955711,0.1255,4585.5,4584.2,3.2078]
[1758202955913,0.297,4585.3,4584.2,3.2078]
[1758202956211,0.525,4585.2,4584.2,3.2078]
[1758202956409,3.2078,4585.6,4584.8,0.2779]
[1758202956613,0.297,4585.7,4584.8,0.2779]
[1758202956803,0.4225,4586.0,4584.8,0.2779]
[1758202957110,0.228,4586.1,4585.5,3.2078]
[1758202957316,0.297,4586.3,4585.6,0.2779]
[1758202957713,0.525,4586.3,4585.6,0.2779]
[1758202957911,0.228,4586.2,4585.6,0.2779]
[1758202958210,0.297,4586.7,4585.6,0.2779]
[1758202958409,0.297,4586.7,4585.5,3.2078]
[1758202958410,0.297,4586.5,4585.5,3.2078]
[1758202958610,0.297,4586.5,4585.0,3.2078]
[1758202958611,0.297,4585.9,4585.0,3.2078]
[1758202958912,3.2078,4586.1,4585.1,0.2779]
[1758202959210,0.229,4586.1,4585.7,3.2078]
[1758202959409,0.4168,4586.0,4585.2,3.2078]
[1758202959814,0.297,4585.9,4584.8,0.2779]
[1758202960210,0.297,4585.4,4584.7,3.2078]
[1758202960406,0.526,4585.3,4584.7,3.2078]
[1758202960821,0.297,4585.3,4584.7,3.2078]
[1758202961111,3.3276,4585.5,4584.7,3.2078]
[1758202961112,0.297,4584.9,4584.7,3.2078]
[1758202961313,0.1198,4585.0,4584.7,3.2078]
[1758202961513,0.297,4584.9,4584.7,3.2078]
[1758202962308,0.297,4584.9,4584.2,3.2078]
[1758202963317,0.229,4584.8,4584.2,3.2078]
[1758202963721,0.297,4584.4,4584.2,3.2078]
[1758202964021,0.297,4584.3,4584.2,3.2078]
[1758202964219,0.526,4584.3,4584.2,3.2078]
[1758202964622,0.297,4584.3,4584.2,3.2078]
[1758202964819,0.526,4584.3,4584.2,3.2078]
[1758202965122,0.526,4584.3,4583.6,3.2078]
[1758202965618,0.1198,4584.5,4583.6,3.2078]
[1758202965813,0.1198,4584.5,4583.2,0.229]
[1758202965814,0.229,4584.5,4584.1,3.2078]
[1758202966223,0.297,4584.8,4584.1,3.4857]
[1758202966516,0.526,4584.5,4584.1,3.2078]
[1758202966816,0.297,4584.4,4583.6,3.4857]
[1758202967418,0.297,4584.4,4584.1,3.2078]
[1758202967620,0.1198,4585.0,4584.2,0.2779]
[1758202967621,0.4168,4585.0,4584.2,0.2779]
[1758202967813,0.297,4584.8,4584.6,3.2078]
[1758202968016,0.229,4584.9,4584.6,3.2078]
[1758202968219,0.297,4584.8,4584.6,3.2078]
[1758202968619,0.229,4584.7,4584.6,3.2078]
[1758202968818,0.526,4584.7,4584.6,3.2078]
[1758202969018,0.1198,4585.0,4584.6,3.2078]
[1758202969223,3.6246,4585.5,4584.6,3.2078]
[1758202969423,0.53332033,4585.4,4584.6,3.2078]
[1758202969726,0.4168,4585.5,4585.1,3.2078]
[1758202969921,0.297,4585.3,4585.1,3.2078]
[1758202970120,0.297,4585.3,4584.4,3.2078]
[1758202970318,0.297,4585.1,4584.4,3.2078]
[1758202970817,0.1198,4585.0,4584.4,3.2078]
[1758202971016,0.83090967,4584.9,4583.9,3.2078]
[1758202971321,0.297,4584.7,4583.9,3.2078]
[1758202971624,0.76290967,4584.6,4584.0,0.2779]
[1758202971825,0.297,4584.4,4583.9,3.2078]
[1758202972020,0.4168,4585.0,4584.0,0.2779]
[1758202972217,0.53437819,4584.9,4584.0,0.2779]
[1758202972413,0.53437819,4584.8,4584.0,0.2779]
[1758202972619,0.83137819,4584.7,4584.4,3.2078]
[1758202972925,0.297,4584.5,4584.4,3.2078]
[1758202973123,0.83184674,4584.5,4583.9,3.2078]
[1758202973320,3.2078,4585.1,4584.5,0.2779]
[1758202973521,0.53533218,4585.0,4584.4,3.2078]
[1758202973723,0.53533218,4584.9,4584.5,0.2779]
[1758202974023,0.53533218,4584.9,4584.4,3.2078]
[1758202974024,0.1198,4584.5,4584.4,3.2078]
[1758202974223,0.1198,4584.5,4583.8,3.4857]
[1758202974530,0.1198,4584.5,4583.6,0.0206]
[1758202974531,0.53533218,4584.4,4584.3,0.2779]
[1758202975418,0.229,4584.6,4584.3,0.2779]
[1758202975624,0.53533218,4584.5,4584.3,0.2779]
[1758202975817,0.53533218,4584.4,4584.2,3.2078]
[1758202976019,0.53533218,4584.3,4584.2,3.2078]
[1758202976221,0.53533218,4584.6,4584.2,3.2078]
[1758202976726,0.53533218,4584.5,4584.2,3.2078]
[1758202976921,0.3003,4585.0,4584.3,0.2781]
[1758202976922,0.53533218,4584.4,4584.3,0.2781]
[1758202977117,0.4262,4585.5,4584.3,0.49622]
[1758202977429,0.4262,4585.5,4583.6,0.0206]
[1758202977430,0.52390563,4585.4,4585.1,3.2078]
[1758202977728,0.3003,4585.4,4585.1,3.60016]
[1758202978028,0.1259,4585.5,4585.1,7.2078]
[1758202978325,0.1259,4585.5,4585.1,3.2078]
[1758202978626,0.1259,4585.5,4585.2,0.39236]
[1758202978826,0.1259,4585.5,4585.1,3.2078]
[1758202979223,0.3003,4585.4,4585.1,3.2078]
[1758202979632,0.3003,4584.9,4584.6,3.2078]
[1758202979926,0.1259,4585.0,4584.6,3.2078]
[1758202980118,0.3003,4584.9,4584.6,3.2078]
[1758202980318,0.2222646,4584.8,4584.6,3.2078]
[1758202980523,0.4262,4584.0,4583.9,3.2078]
[1758202981322,0.4262,4584.0,4583.9,7.2078]
[1758202982129,0.1259,4584.5,4584.3,0.39243]
[1758202982329,0.3003,4584.4,4584.3,0.39243]
[1758202982533,0.3003,4584.4,4584.3,3.60023]
[1758202982927,0.3003,4584.4,4584.3,3.2078]
[1758202983226,0.52258777,4584.4,4584.3,3.2078]
[1758202983625,0.3003,4584.4,4584.3,3.2078]
[1758202983826,0.3003,4584.4,4584.3,7.2078]
[1758202984030,0.1259,4584.5,4584.3,7.82923]
[1758202984327,0.4262,4585.0,4584.4,4.21813]
[1758202984525,0.4262,4585.0,4584.9,3.2078]
[1758202984828,0.1259,4585.5,4584.9,3.4368]
[1758202985027,0.4262,4585.5,4585.4,3.2078]
[1758202986227,0.2972,4585.4,4585.2,3.2078]
[1758202986427,0.1259,4585.5,4585.2,3.2078]
[1758202986631,0.2972,4585.4,4585.2,3.2078]
[1758202986929,0.1259,4585.5,4585.2,3.2078]
[1758202987527,0.2972,4585.4,4585.2,3.2078]
[1758202987728,0.1259,4585.5,4585.2,3.2078]
[1758202987931,0.2972,4585.4,4585.2,3.60016]
[1758202988126,0.2972,4585.4,4585.3,0.39235]
[1758202988326,0.1259,4585.5,4585.3,0.39235]
[1758202988522,0.1259,4585.5,4585.2,3.82915]
[1758202988727,0.1259,4585.5,4585.2,3.82916]
[1758202988929,0.2972,4585.4,4585.2,3.4368]
[1758202989232,0.82694517,4585.3,4585.2,3.4368]
[1758202989433,0.82693217,4585.3,4585.2,3.4368]
[1758202989929,0.2972,4585.3,4585.2,3.4368]
[1758202990127,0.1259,4585.5,4585.3,0.39235]
[1758202990324,0.4231,4585.5,4585.4,0.229]
[1758202990835,0.2972,4585.4,4585.2,3.2078]
[1758202991334,0.82678586,4585.3,4585.2,3.2078]
[1758202991728,0.82678586,4585.3,4584.9,0.229]
[1758202991927,0.1199,4585.0,4584.6,3.60021]
[1758202992127,0.2972,4584.8,4584.6,3.2078]
[1758202992328,0.1199,4585.0,4584.6,3.4368]
[1758202992634,0.2972,4584.9,4584.6,3.4368]
[1758202992835,0.2972,4584.9,4584.8,0.39239]
[1758202993132,0.2972,4584.9,4584.6,3.82921]
[1758202993335,0.1199,4585.0,4584.7,0.3924]
[1758202993634,0.2972,4584.9,4584.6,3.4368]
[1758202994334,0.1199,4585.0,4584.6,3.4368]
[1758202994531,0.2972,4584.9,4584.6,3.2078]
[1758202994831,0.1199,4585.0,4584.6,3.2078]
[1758202995135,0.1199,4584.5,4584.3,0.0218]
[1758202995334,0.2972,4584.4,4584.3,0.0218]
[1758202995535,0.2972,4584.4,4584.0,0.229]
[1758202995930,0.4171,4584.5,4584.4,0.39243]
[1758202996236,0.1199,4584.5,4584.4,3.82923]
[1758202996433,0.4171,4585.0,4584.9,0.39238]
[1758202996733,0.1199,4585.0,4584.9,3.60018]
[1758202996930,0.1199,4585.0,4584.9,7.60018]
[1758202997136,0.1259,4585.5,4585.4,0.39234]
[1758202997334,0.4231,4585.5,4585.4,3.82914]
[1758202997737,0.4231,4585.5,4585.4,3.4368]
[1758202998629,0.4231,4585.5,4585.4,3.2078]
[1758202999637,0.4231,4585.5,4585.0,0.229]
[1758202999937,0.4231,4585.5,4585.4,3.2078]
[1758203001633,0.1259,4585.5,4585.4,7.4368]
[1758203002132,0.4231,4585.5,4585.4,7.4368]
[1758203002728,0.1259,4586.0,4585.8,0.3923]
[1758203002928,0.2972,4586.4,4586.0,0.98073]
[1758203003132,0.2972,4586.9,4586.3,0.98067]
[1758203003328,0.2972,4586.9,4586.8,3.2078]
[1758203003528,0.2972,4586.9,4586.8,3.4358]
[1758203005434,0.2972,4586.9,4586.8,3.2078]
[1758203006133,0.2972,4586.4,4586.3,3.4358]
[1758203007341,0.2972,4586.4,4586.3,3.2078]
[1758203007532,0.2972,4586.4,4585.5,3.2078]
[1758203007733,0.2972,4585.9,4585.5,3.2078]
[1758203008137,0.1199,4586.0,4585.5,3.2078]
[1758203008331,0.1199,4586.0,4585.8,0.3923]
[1758203008543,0.1199,4586.5,4586.4,0.39226]
[1758203008544,0.4171,4586.5,4586.4,0.39226]
[1758203008738,0.1199,4586.5,4586.4,7.82806]
[1758203009443,0.4171,4586.5,4586.4,3.4358]
[1758203010841,0.1199,4587.0,4586.4,7.4358]
[1758203011039,0.4171,4586.5,4586.4,0.62025]
[1758203011235,0.4171,4586.5,4586.4,3.2078]
[1758203011541,0.4171,4586.5,4586.4,3.4358]
[1758203012139,0.4171,4586.5,4586.4,3.2078]
[1758203013141,0.1199,4586.5,4586.4,3.4358]
[1758203013438,0.1199,4587.0,4586.4,8.41644]
[1758203013643,0.1199,4587.0,4586.9,3.2078]
[1758203013845,0.4171,4587.0,4586.9,3.82801]
[1758203014243,0.1199,4587.0,4586.9,3.82801]
[1758203014444,0.4171,4587.0,4586.9,3.4358]
[1758203014639,0.1199,4588.0,4587.0,0.3922]
[1758203014941,0.1199,4588.0,4587.1,0.228]
[1758203015138,0.1199,4588.0,4587.1,4.228]
[1758203015744,0.2972,4588.3,4587.1,5.20849]
[1758203015936,0.2972,4588.3,4588.2,3.2078]
[1758203016142,0.2972,4588.3,4588.2,3.4358]
[1758203017642,0.2972,4588.3,4588.2,3.2078]
[1758203017853,0.2972,4588.3,4588.2,3.4358]
[1758203018748,0.1199,4588.5,4588.3,0.39209]
[1758203018948,0.3089,4588.4,4588.3,0.39209]
[1758203019148,0.3089,4588.4,4588.3,0.228]
[1758203019546,0.3089,4588.4,4588.2,3.5999]
[1758203019852,0.3089,4588.4,4588.3,0.228]
[1758203020447,0.1199,4588.5,4588.2,3.2078]
[1758203020652,0.3089,4588.4,4588.3,0.228]
[1758203022146,0.3089,4588.3,4588.2,3.2078]
[1758203025753,0.4339,4588.0,4587.9,0.228]
[1758203025956,0.125,4588.0,4587.6,3.4358]
[1758203026746,0.3089,4587.9,4587.6,3.4358]
[1758203027054,0.125,4588.0,4587.6,3.2078]
[1758203027255,0.3089,4587.9,4587.6,3.2078]
[1758203027454,0.125,4588.0,4587.6,3.2078]
[1758203027753,0.3089,4587.9,4587.6,3.2078]
[1758203028058,0.125,4588.0,4587.6,3.2078]